bitfinex/quotes_ETHUSD_20220308
["timestamp","ask_amount","ask_price","bid_price","bid_amount"]
[1646780826803,0.3,2572.9,2572.8,0.05992341]
[1646780827005,0.3,2572.9,2572.8,0.06331328]
[1646780827207,0.4943,2572.9,2572.8,0.06331328]
[1646780827404,0.1943,2572.9,2572.8,0.06331328]
[1646780827804,0.1943,2572.9,2572.8,0.05992341]
[1646780828807,3.5452688,2573.0,2572.8,0.05992341]
[1646780829211,3.5452688,2573.0,2572.7,0.0629739]
[1646780830256,3.5452688,2573.0,2572.7,0.05975789]
[1646780830451,3.5452688,2573.0,2572.7,0.06297709]
[1646780831256,3.5452688,2573.0,2572.7,0.05288009]
[1646780831455,3.5452688,2573.0,2572.7,0.04966089]
[1646780831654,3.5452688,2573.0,2572.7,0.05288009]
[1646780832655,3.5452688,2573.0,2572.7,0.04966089]
[1646780832868,3.5452688,2573.0,2572.7,0.05288764]
[1646780834009,3.5452688,2573.0,2572.7,0.05289316]
[1646780834208,3.5452688,2573.0,2572.9,0.11563485]
[1646780838065,2.5452688,2573.0,2572.9,0.11563485]
[1646780839359,2.5452688,2573.0,2572.9,0.05769168]
[1646780840158,3.5452688,2573.0,2572.9,0.05769168]
[1646780840607,2.5452688,2573.0,2572.9,0.05769168]
[1646780840802,3.5452688,2573.0,2572.9,0.05769168]
[1646780841005,2.5452688,2573.0,2572.9,0.05769168]
[1646780841208,3.5452688,2573.0,2572.9,0.05769168]
[1646780841408,2.5452688,2573.0,2572.9,0.05769168]
[1646780841605,3.5452688,2573.0,2572.9,0.05769168]
[1646780842909,2.5452688,2573.0,2572.9,0.05769168]
[1646780843913,2.5452688,2573.0,2572.8,0.1182584]
[1646780844550,2.5452688,2573.0,2572.8,0.11457636]
[1646780844951,2.5452688,2573.0,2572.8,0.11793162]
[1646780845762,2.5452688,2573.0,2572.8,0.11457636]
[1646780846158,2.5452688,2573.0,2572.8,0.11793162]
[1646780846358,0.9726239,2573.2,2572.8,0.11793162]
[1646780846657,0.97227,2573.6,2572.8,0.11793162]
[1646780846658,0.1943,2573.6,2572.8,0.11793162]
[1646780846858,2.91694,2573.9,2572.8,0.67793162]
[1646780847158,2.91694,2573.9,2572.9,5.08950705]
[1646780847360,1.944255,2573.9,2572.9,4.06]
[1646780847559,0.972032,2574.0,2573.1,0.00335506]
[1646780847761,0.1942,2573.9,2573.1,0.00335506]
[1646780848206,1.37602058,2574.6,2573.2,0.9498]
[1646780848509,0.94957436,2574.6,2573.3,6.67206965]
[1646780848706,1.9436515,2574.5,2573.4,0.00319516]
[1646780848905,0.1942,2574.4,2573.4,0.00319516]
[1646780849409,0.1942,2574.4,2573.4,2.14922227]
[1646780849609,0.1942,2574.4,2573.5,3.5]
[1646780849809,0.1942,2574.4,2573.8,0.00319492]
[1646780850214,0.4942,2574.4,2573.8,0.00319492]
[1646780850611,0.4942,2574.4,2573.7,3.5]
[1646780851016,0.4942,2574.4,2574.0,0.0031948]
[1646780851866,0.3,2574.4,2573.5,3.5]
[1646780852058,0.3,2574.4,2574.0,0.00322088]
[1646780852859,0.3,2574.4,2574.0,0.92693132]
[1646780853059,0.3,2574.4,2574.0,0.92371044]
[1646780853258,0.3,2574.4,2574.0,0.98374335]
[1646780853665,0.3,2574.5,2574.1,3.5]
[1646780853863,0.94957436,2574.8,2574.0,0.98374335]
[1646780854362,1.17350657,2574.7,2574.0,4.48052247]
[1646780854559,2.12308093,2574.7,2574.0,4.48374348]
[1646780854960,0.9718,2574.6,2574.0,4.48374348]
[1646780855260,1.5718,2574.6,2574.0,0.98374348]
[1646780855461,1.5718,2574.6,2574.0,0.98052247]
[1646780855704,1.5718,2574.6,2574.0,0.98375008]
[1646780855904,1.5718,2574.6,2574.0,0.98263511]
[1646780856313,2.5435799,2574.6,2574.0,0.98263511]
[1646780856712,4.49315426,2574.6,2574.0,0.9794075]
[1646780856913,3.49315426,2574.6,2574.0,0.06003964]
[1646780857111,4.49315426,2574.6,2574.0,0.06003964]
[1646780857914,4.49315426,2574.6,2574.0,0.05681203]
[1646780858116,4.49315426,2574.6,2574.0,0.06003964]
[1646780858522,4.49315426,2574.6,2574.2,0.11382579]
[1646780859116,0.87657639,2574.3,2574.2,0.11382579]
[1646780859366,1.17657639,2574.3,2574.2,0.11382579]
[1646780861155,2.12615075,2574.3,2574.2,0.11382579]
[1646780861563,14.02615075,2574.3,2574.2,0.11382579]
[1646780861756,14.02615075,2574.3,2574.2,0.05678785]
[1646780861757,14.07657639,2574.3,2574.2,0.05678785]
[1646780861960,15.02395197,2574.3,2574.2,0.05678785]
[1646780862360,14.25974418,2574.3,2574.0,0.00322608]
[1646780862562,12.84740885,2574.1,2574.0,0.00322608]
[1646780862859,12.87225,2573.9,2573.0,5.0447]
[1646780863106,0.97224,2573.7,2573.1,1.58948856]
[1646780863307,1.01521514,2573.3,2573.1,1.58948856]
[1646780863507,0.9721732,2573.3,2573.1,1.58948856]
[1646780863708,0.3,2573.3,2573.1,1.58948856]
[1646780863907,0.3,2573.4,2573.1,1.58948856]
[1646780864113,0.6,2573.4,2573.1,1.59271533]
[1646780864307,0.3,2573.7,2573.1,1.59271533]
[1646780864708,1.12716475,2573.3,2573.1,0.00322677]
[1646780865109,1.12716475,2573.3,2573.0,1.58948187]
[1646780865110,1.42716475,2573.3,2573.0,1.58948187]
[1646780865311,1.42716475,2573.3,2573.1,0.00322677]
[1646780865510,1.42716475,2573.3,2573.1,1.59270864]
[1646780865709,1.42716475,2573.3,2573.1,0.00322677]
[1646780866316,1.42716475,2573.3,2572.7,3.6943]
[1646780866509,1.42716475,2573.3,2573.1,0.00322678]
[1646780867364,2.39941475,2573.3,2573.1,0.00322678]
[1646780867563,2.69941475,2573.3,2572.6,1.138]
[1646780867768,11.9,2573.2,2572.6,1.138]
[1646780868078,11.9,2573.2,2572.7,0.01290906]
[1646780868262,14.8450984,2573.2,2572.7,0.01290906]
[1646780868663,0.3,2573.1,2572.7,0.01290906]
[1646780868869,0.3,2573.1,2572.2,3.5]
[1646780868870,0.99688242,2572.4,2572.2,3.5]
[1646780869068,0.27365756,2572.5,2572.3,1.58977955]
[1646780869371,0.27365756,2572.5,2572.4,1.58977955]
[1646780869565,0.57365756,2572.5,2572.4,1.58977955]
[1646780869767,0.57365756,2572.5,2572.2,1.58977955]
[1646780870166,0.57365756,2572.5,2572.3,0.00350985]
[1646780870817,1.54617966,2572.5,2572.3,0.00350985]
[1646780871018,1.54617966,2572.5,2572.3,1.58977955]
[1646780871019,1.2725221,2572.5,2572.3,1.58977955]
[1646780871221,1.5725221,2572.5,2572.4,1.58977955]
[1646780871425,1.5725221,2572.5,2572.3,0.00350989]
[1646780871624,0.6,2572.5,2572.3,0.00350989]
[1646780871822,0.3,2572.5,2572.3,0.00350989]
[1646780872028,1.2725293,2572.5,2572.3,0.00350989]
[1646780872324,1.5725293,2572.5,2572.0,1.58977955]
[1646780872524,1.5725293,2572.5,2571.8,3.6943]
[1646780872525,1.5725293,2572.5,2572.3,0.00350989]
[1646780872725,1.22281327,2572.6,2572.3,0.00350989]
[1646780873325,0.3,2572.6,2572.4,0.09842554]
[1646780873525,0.9723684,2572.8,2572.5,1.58977955]
[1646780873725,0.3,2572.7,2572.5,1.58977955]
[1646780873926,1.27236,2572.7,2572.4,0.09842554]
[1646780874375,1.19054395,2572.6,2572.4,0.09842554]
[1646780875068,1.19054395,2572.6,2572.4,0.10181684]
[1646780875470,0.1943,2572.5,2572.4,0.10181684]
[1646780875870,0.1943,2572.5,2572.4,0.09842554]
[1646780878508,0.1943,2572.5,2572.4,0.04944267]
[1646780880208,2.16321395,2572.6,2572.4,0.04944267]
[1646780880209,2.35751395,2572.6,2572.4,0.04944267]
[1646780881009,2.16321395,2572.6,2572.4,0.05265981]
[1646780881867,2.16321395,2572.6,2572.4,0.04944267]
[1646780882059,2.16321395,2572.6,2572.4,0.05267566]
[1646780882861,4.71202,2572.7,2572.4,0.05267566]
[1646780883062,1.76666,2572.7,2572.4,0.04944267]
[1646780883262,1.46666,2572.7,2572.4,0.04944267]
[1646780883463,1.27236,2572.7,2572.4,0.05267566]
[1646780883863,1.27236,2572.7,2572.5,0.10069069]
[1646780884063,1.13229234,2572.6,2572.5,0.10069069]
[1646780884464,1.13229234,2572.6,2572.5,0.10392255]
[1646780885463,1.13229234,2572.6,2572.5,0.10069069]
[1646780888714,1.13229234,2572.6,2572.5,0.14847705]
[1646780889116,1.57236,2572.7,2572.5,0.14847705]
[1646780889367,1.27236,2572.7,2572.5,0.14847705]
[1646780889555,0.3,2572.7,2572.5,0.14847705]
[1646780889756,0.4943,2572.9,2572.5,0.14847705]
[1646780889966,0.3,2572.9,2572.5,0.14847705]
[1646780890157,1.9445357,2573.0,2572.8,0.93645517]
[1646780890366,1.1803,2573.6,2572.8,0.93645517]
[1646780890367,2.9172299,2573.5,2572.9,3.5]
[1646780890657,1.94425,2573.6,2572.9,3.5]
[1646780890856,0.1943,2573.5,2572.9,3.8898]
[1646780891061,0.1943,2573.8,2573.2,3.0]
[1646780891266,0.1942,2574.1,2573.6,0.3898]
[1646780891463,0.94740885,2574.7,2573.7,4.57324872]
[1646780891662,0.3887,2575.1,2573.7,16.47324872]
[1646780891663,0.94740885,2575.0,2573.7,16.47324872]
[1646780891860,0.97159,2574.9,2573.7,5.57324872]
[1646780892061,0.1942,2574.8,2573.7,5.57324872]
[1646780892263,0.1942,2574.8,2573.9,0.3898]
[1646780892460,0.1942,2574.8,2573.8,1.58922429]
[1646780892461,0.4942,2574.8,2574.5,0.99620823]
[1646780892659,0.4942,2574.8,2574.2,3.5]
[1646780892863,0.1942,2574.8,2574.2,3.5]
[1646780893313,2.1373568,2574.9,2574.2,3.5]
[1646780893515,2.1373568,2574.9,2574.3,0.3898]
[1646780893721,0.9714,2575.3,2574.5,0.3898]
[1646780893917,0.9713542,2575.4,2574.6,4.06]
[1646780894121,0.9713542,2575.4,2574.6,4.4498]
[1646780894319,0.9713542,2575.4,2574.6,5.4498]
[1646780894518,0.9713542,2575.4,2575.1,1.22014774]
[1646780894917,0.3,2575.3,2575.1,1.22014774]
[1646780896868,1.2713542,2575.4,2574.8,0.3898]
[1646780897058,0.3,2575.4,2574.9,3.5]
[1646780897258,0.494,2575.7,2575.0,0.56]
[1646780897461,0.3,2575.7,2575.1,3.5]
[1646780897659,0.494,2575.8,2575.1,3.5]
[1646780897860,0.194,2575.8,2575.1,3.5]
[1646780898062,2.5423978,2575.9,2575.1,3.5]
[1646780898260,1.22228932,2575.7,2575.2,1.21447035]
[1646780898461,1.22228932,2575.7,2575.3,3.5]
[1646780898667,1.52228932,2575.7,2575.3,3.5]
[1646780899060,1.52228932,2575.7,2575.1,3.5]
[1646780899259,1.52228932,2575.7,2575.2,0.19446676]
[1646780903711,1.52228932,2575.7,2575.5,0.04888628]
[1646780907963,3.46499872,2575.7,2575.5,0.04888628]
[1646780908217,3.46499872,2575.7,2575.4,0.04864454]
[1646780909420,4.43642872,2575.7,2575.6,0.04827592]
[1646780909619,4.43642872,2575.7,2575.5,0.04888628]
[1646780910618,5.43642872,2575.7,2575.5,0.04888628]
[1646780910821,5.63042872,2575.7,2575.5,0.04888628]
[1646780911867,3.68761692,2575.7,2575.5,0.04888628]
[1646780912261,2.68761692,2575.7,2575.5,0.04888628]
[1646780913861,2.49361692,2575.7,2575.5,0.04888628]
[1646780914062,2.49361692,2575.7,2575.6,0.09059608]
[1646780915362,1.2713276,2575.7,2575.6,0.09059608]
[1646780915616,0.9712,2575.9,2575.6,0.09059608]
[1646780915617,1.9423575,2575.9,2575.6,0.09059608]
[1646780915819,1.9423575,2575.9,2575.6,0.08969636]
[1646780916620,3.8849509,2575.9,2575.6,0.08969636]
[1646780916819,1.94262,2575.8,2575.6,0.08969636]
[1646780917025,0.3,2575.7,2575.6,0.08969636]
[1646780919023,0.3,2575.7,2575.6,0.09049636]
[1646780919226,0.9712822,2575.8,2575.6,0.09049636]
[1646780919519,0.00194851,2576.1,2575.7,0.04561517]
[1646780920314,0.95303888,2576.5,2576.0,0.92744415]
[1646780920514,0.97096,2576.5,2576.1,3.5]
[1646780920714,0.194,2576.6,2576.1,3.5]
[1646780920919,0.00779257,2576.8,2576.3,12.2898]
[1646780921219,0.00779257,2576.8,2576.4,4.4498]
[1646780921614,0.194,2577.4,2577.1,0.86855367]
[1646780921815,0.00775833,2577.1,2576.4,5.4498]
[1646780922618,1.2706811,2577.2,2576.4,5.4498]
[1646780922915,0.00383191,2576.9,2576.8,0.94913034]
[1646780923917,1.2706811,2577.2,2576.9,0.00099883]
[1646780924117,0.00383183,2577.0,2576.9,3.50099883]
[1646780925122,1.4645918,2577.5,2576.9,3.50099883]
[1646780925322,0.00383176,2577.1,2576.9,3.50099883]
[1646780926331,0.00096,2577.6,2577.0,0.56]
[1646780926525,0.01456688,2577.5,2577.1,3.5]
[1646780927568,0.97045,2577.8,2577.1,3.5]
[1646780927569,1.40842891,2577.7,2577.1,3.5]
[1646780927770,0.00364207,2577.4,2576.9,0.00099883]
[1646780928569,0.00364207,2577.4,2577.0,0.13468713]
[1646780928875,1.15787098,2577.1,2577.0,0.13468713]
[1646780932215,1.15787098,2577.1,2577.0,0.08339787]
[1646780933219,1.15787098,2577.1,2576.9,0.00099883]
[1646780933422,1.15787098,2577.1,2575.1,0.56]
[1646780933423,14.91200933,2577.0,2575.1,0.56]
[1646780933622,1.17150187,2574.8,2574.7,4.0]
[1646780933820,0.01228702,2576.4,2575.2,0.52267622]
[1646780933821,0.9939431,2575.7,2575.2,0.52267622]
[1646780934025,12.8939431,2575.7,2574.3,8.241]
[1646780934224,12.8939431,2575.7,2574.3,1.1943]
[1646780934225,11.9,2575.5,2574.3,1.1943]
[1646780934468,0.9716,2575.2,2574.0,3.5]
[1646780934670,12.8717469,2575.2,2574.1,1.5887196]
[1646780934871,12.5898,2575.2,2573.8,0.02642787]
[1646780935071,0.97750802,2574.1,2573.9,1.58889863]
[1646780935374,0.97750802,2574.1,2573.8,0.5]
[1646780935375,1.27750802,2574.1,2573.8,0.5]
[1646780935572,2.24936802,2574.1,2573.8,0.5]
[1646780935972,3.22122422,2574.1,2573.8,0.5]
[1646780936172,2.5437162,2574.1,2573.9,3.5]
[1646780936374,0.3,2574.1,2573.9,3.5]
[1646780936576,0.3,2574.1,2573.6,0.56]
[1646780936577,0.3,2574.1,2573.7,3.5]
[1646780936774,0.97172,2574.6,2573.8,1.5889445]
[1646780936973,0.97172,2574.6,2573.9,3.5]
[1646780937175,0.97172,2574.6,2574.0,1.5889445]
[1646780937176,1.57172,2574.6,2574.0,1.5889445]
[1646780937373,0.99050664,2574.2,2574.0,1.5889445]
[1646780937773,2.26235664,2574.2,2574.0,1.5889445]
[1646780938214,2.5436781,2574.2,2574.0,1.5889445]
[1646780939415,2.5436781,2574.2,2574.0,1.62809923]
[1646780939615,2.5436781,2574.2,2574.0,0.03915473]
[1646780939817,2.2436781,2574.2,2574.0,0.03915473]
[1646780940018,0.1942,2574.4,2574.1,1.58898815]
[1646780940220,0.1942,2574.6,2574.2,3.5]
[1646780940618,0.90498894,2574.7,2574.0,3.53915473]
[1646780940817,0.90498894,2574.7,2574.1,1.5889426]
[1646780941619,1.20498894,2574.7,2574.1,1.5889426]
[1646780942468,0.4942,2574.8,2574.2,3.5]
[1646780942670,0.1942,2575.2,2574.3,2.53857524]
[1646780942871,0.1942,2575.2,2574.5,0.3898]
[1646780943069,0.9713186,2575.6,2574.6,5.64877524]
[1646780943070,1.1653186,2575.6,2574.6,5.64877524]
[1646780943268,1.1653186,2575.6,2574.7,1.58877524]
[1646780943468,1.1653186,2575.6,2574.8,4.06]
[1646780944070,1.1653186,2575.6,2574.8,5.06]
[1646780945072,1.1653186,2575.6,2575.0,1.06295712]
[1646780945371,0.3,2575.5,2575.1,3.5]
[1646780945620,0.3,2575.5,2575.0,1.06295712]
[1646780945814,0.494,2575.6,2575.1,3.5]
[1646780946014,0.3,2575.6,2575.1,3.5]
[1646780946214,0.494,2575.8,2575.1,3.5]
[1646780946414,0.494,2575.8,2575.0,1.06295712]
[1646780946615,0.194,2575.8,2575.0,1.06295712]
[1646780946815,0.194,2575.8,2575.1,3.5]
[1646780947219,0.194,2575.8,2575.0,1.06295712]
[1646780948017,0.194,2575.8,2575.1,3.5]
[1646780948619,0.194,2575.8,2575.3,0.03829953]
[1646780949477,0.3,2575.9,2575.3,0.03829953]
[1646780949679,0.194,2576.0,2575.3,0.03829953]
[1646780949876,0.494,2576.0,2575.3,0.03829953]
[1646780950082,0.194,2576.0,2575.3,0.03829953]
[1646780950279,0.194,2576.0,2575.5,0.89611191]
[1646780950479,0.194,2576.0,2575.6,3.5]
[1646780950679,0.00353195,2576.1,2575.6,3.5]
[1646780951079,0.00353195,2576.1,2575.6,5.06]
[1646780951480,0.00353195,2576.1,2576.0,0.93384965]
[1646780951679,3.8839702,2576.6,2576.0,0.93384965]
[1646780951877,0.0035321,2576.1,2576.0,0.93384965]
[1646780952878,3.8839702,2576.6,2576.0,0.93384965]
[1646780953111,0.00353206,2576.2,2576.0,0.93384965]
[1646780953916,3.8839702,2576.6,2576.0,0.93384965]
[1646780954317,0.00353203,2576.2,2576.0,0.93384965]
[1646780955317,4.1839702,2576.6,2576.0,0.93384965]
[1646780955618,0.00353203,2576.2,2576.0,0.93384965]
[1646780956018,0.00353203,2576.2,2576.1,3.5]
[1646780956316,2.5419148,2576.6,2576.0,0.93384965]
[1646780956716,0.00353199,2576.3,2576.0,0.93384965]
[1646780957570,2.5419148,2576.6,2576.0,0.93235395]
[1646780957769,0.00353199,2576.3,2576.0,0.93235395]
[1646780957969,0.00353199,2576.3,2576.1,3.5]
[1646780958370,0.00353199,2576.3,2576.1,5.06]
[1646780958568,0.00353199,2576.3,2576.2,3.5]
[1646780958969,0.01412515,2576.8,2576.6,0.95225785]
[1646780958970,0.00769393,2576.8,2576.6,0.95225785]
[1646780959968,1.5708003,2577.1,2576.6,0.95225785]
[1646780960369,0.00353165,2576.8,2576.6,0.95225785]
[1646780961211,1.5708003,2577.1,2576.6,0.95225785]
[1646780961414,0.00353165,2576.8,2576.6,0.95225785]
[1646780962417,0.3,2577.1,2576.6,0.95225785]
[1646780962618,0.494,2577.2,2576.6,0.95225785]
[1646780962823,0.00353165,2576.8,2576.3,3.5]
[1646780963418,0.00353165,2576.8,2576.7,0.11433751]
[1646780963618,0.194,2577.2,2576.7,0.11433751]
[1646780963819,0.01461458,2577.1,2576.7,0.11433751]
[1646780964868,0.194,2577.2,2576.7,0.11433751]
[1646780966365,0.00192383,2577.1,2576.7,0.11433751]
[1646780967266,2.71214115,2577.2,2576.7,0.11433751]
[1646780967467,0.00382754,2577.0,2576.7,0.11433751]
[1646780968426,3.68291115,2577.2,2576.7,0.11433751]
[1646780968726,3.68291115,2577.2,2576.9,0.1142925]
[1646780968925,0.00382758,2577.0,2576.9,0.1142925]
[1646780969727,2.7355023,2577.2,2576.9,0.1142925]
[1646780969928,0.0038275,2577.1,2576.9,0.1142925]
[1646780970929,2.5415023,2577.2,2576.9,0.1142925]
[1646780971129,0.00382747,2577.1,2576.9,0.1142925]
[1646780971967,3.4184131,2577.2,2576.9,0.1142925]
[1646780972368,0.00370116,2577.1,2576.9,0.1142925]
[1646780973176,3.4184131,2577.2,2576.9,0.1142925]
[1646780973572,0.00370116,2577.1,2576.9,0.1142925]
[1646780973770,0.00370116,2577.1,2577.0,0.04014905]
[1646780974372,2.2415023,2577.2,2577.0,0.04014905]
[1646780974571,1.9415023,2577.2,2577.0,0.04014905]
[1646780974771,2.24520342,2577.2,2577.0,0.04014905]
[1646780975172,1.94520342,2577.2,2577.0,0.04014905]
[1646780975471,2.24520342,2577.2,2577.0,0.04014905]
[1646780975722,0.3,2577.2,2577.0,0.04014905]
[1646780975916,0.00351602,2577.2,2577.0,0.04014905]
[1646780976119,0.30351602,2577.2,2577.0,0.04014905]
[1646780976518,0.00351602,2577.2,2577.0,0.04014905]
[1646780976922,0.3,2577.3,2577.0,0.04014905]
[1646780977122,0.00351602,2577.2,2577.0,0.04014905]
[1646780977322,0.00351602,2577.2,2577.0,3.54014905]
[1646780977923,0.00351602,2577.2,2577.0,0.04014905]
[1646780978123,3.04650508,2577.7,2577.0,0.04014905]
[1646780978328,3.04650508,2577.7,2577.0,3.54014905]
[1646780978525,0.3,2577.6,2577.0,0.04014905]
[1646780978724,0.3,2577.6,2577.1,0.08186917]
[1646780979125,1.27058,2577.6,2577.1,0.08186917]
[1646780980673,2.21798885,2577.6,2577.1,0.08186917]
[1646780981875,0.00352502,2577.5,2577.1,0.08186917]
[1646780982879,1.27058,2577.6,2577.1,0.08186917]
[1646780983117,0.00192292,2577.4,2577.1,0.08186917]
[1646780984017,1.27058,2577.6,2577.1,0.08186917]
[1646780984217,0.00192292,2577.4,2577.1,0.08186917]
[1646780984917,0.00192292,2577.4,2577.3,0.04076935]
[1646780985118,1.27058,2577.6,2577.3,0.04076935]
[1646780985320,2.21798885,2577.6,2577.3,0.04076935]
[1646780985518,0.00192292,2577.4,2577.3,0.04076935]
[1646780985717,0.00192292,2577.4,2577.3,0.03936925]
[1646780985918,0.00192292,2577.4,2577.3,1.15606526]
[1646780986318,1.27058,2577.6,2577.3,1.15606526]
[1646780986718,0.00382697,2577.5,2577.3,1.15606526]
[1646780987568,2.88830945,2577.9,2577.4,3.5]
[1646780987771,0.94740885,2578.0,2577.4,3.5]
[1646780987969,0.00382693,2577.5,2577.4,3.5]
[1646780988169,0.00382693,2577.5,2577.4,4.5]
[1646780988369,0.00382693,2577.5,2577.4,3.5]
[1646780988569,0.00382693,2577.5,2577.4,4.5]
[1646780988970,0.00096,2578.1,2577.9,1.11755696]
[1646780989169,0.01530529,2578.0,2577.9,1.11755696]
[1646780989968,0.6,2578.2,2577.9,1.11755696]
[1646780990370,0.00382653,2578.1,2577.9,1.11755696]
[1646780991217,1.24740885,2578.3,2577.9,1.11755696]
[1646780991519,0.00375475,2578.1,2577.9,1.11755696]
[1646780991815,0.00241601,2578.1,2577.9,1.11755696]
[1646780992418,1.24740885,2578.3,2577.5,0.06373898]
[1646780992619,0.3,2578.3,2577.5,0.06373898]
[1646780992820,1.44216885,2578.4,2577.5,0.06373898]
[1646780993217,0.94740885,2578.3,2577.5,0.06373898]
[1646780993418,0.94740885,2578.2,2577.5,0.06373898]
[1646780993818,1.24740885,2578.2,2577.5,0.06373898]
[1646780994024,0.00191881,2578.0,2577.5,0.06373898]
[1646780994218,0.00191881,2578.0,2577.6,1.19426169]
[1646780994867,0.94740885,2578.1,2577.6,1.19426169]
[1646780995365,0.00382664,2577.9,2577.6,1.19426169]
[1646780996165,1.24740885,2578.0,2577.6,1.19426169]
[1646780996577,0.25382667,2578.0,2577.6,1.19426169]
[1646780996970,0.94740885,2578.2,2577.6,1.19426169]
[1646780997372,0.94740885,2578.1,2577.6,1.19426169]
[1646780998314,1.24740885,2578.1,2577.6,1.19426169]
[1646780998720,0.00159756,2578.0,2577.6,1.19426169]
[1646780999319,0.94900641,2578.0,2577.6,1.19426169]
[1646780999719,0.94740885,2578.0,2577.6,1.19426169]
[1646781000119,0.95091513,2578.0,2577.8,0.03610861]
[1646781000320,0.94740885,2577.9,2577.8,0.03610861]
[1646781000719,1.24740885,2577.9,2577.8,0.03610861]
[1646781000924,0.48058258,2577.9,2577.8,0.0215557]
[1646781001319,1.89131075,2577.9,2577.8,0.0215557]
[1646781001520,12.57438258,2577.9,2576.7,0.3454]
[1646781001725,1.0281566,2577.0,2576.7,0.3454]
[1646781001978,15.4,2576.9,2576.7,0.3454]
[1646781002175,3.5,2576.8,2576.7,0.3454]
[1646781002371,4.8,2576.8,2576.7,0.3454]
[1646781002575,2.24542479,2576.8,2576.7,0.3454]
[1646781002770,1.24542479,2576.8,2576.7,0.3454]
[1646781002971,4.92600737,2576.8,2576.7,0.3454]
[1646781003174,4.74542479,2576.8,2576.7,0.3454]
[1646781003372,5.74590835,2576.8,2576.7,0.3454]
[1646781003772,4.8,2576.8,2576.7,0.3454]
[1646781004173,1.3,2576.8,2576.7,0.3454]
[1646781004575,0.3,2576.8,2576.7,0.3454]
[1646781004776,4.18808405,2576.9,2575.9,0.3881]
[1646781004972,0.97111,2576.4,2575.8,0.97607782]
[1646781005174,0.9711068,2576.3,2575.8,0.97607782]
[1646781005615,1.2711068,2576.3,2575.8,0.97607782]
[1646781006019,0.9711068,2576.3,2575.8,0.97607782]
[1646781006218,1.2711068,2576.3,2575.8,0.97607782]
[1646781006622,0.9711068,2576.3,2575.8,0.97607782]
[1646781006824,1.2711068,2576.3,2575.8,0.97607782]
[1646781007824,0.9711068,2576.3,2575.8,0.97607782]
[1646781008023,1.2711068,2576.3,2575.8,0.97607782]
[1646781008223,1.4651068,2576.3,2575.8,0.97607782]
[1646781008423,1.1651068,2576.3,2575.8,0.97607782]
[1646781008623,1.4651068,2576.3,2575.8,0.97607782]
[1646781008824,1.4651068,2576.3,2576.0,0.06610958]
[1646781009023,1.1651068,2576.3,2576.0,0.06610958]
[1646781009226,1.4651068,2576.3,2576.0,0.06610958]
[1646781009471,1.2711068,2576.3,2576.0,0.06610958]
[1646781009670,0.9711068,2576.3,2576.0,0.06610958]
[1646781009868,1.2711068,2576.3,2576.0,0.06610958]
[1646781010471,1.2711068,2576.3,2576.2,1.01546319]
[1646781010671,0.9711068,2576.3,2576.2,1.01546319]
[1646781010876,1.2711068,2576.3,2576.2,1.01546319]
[1646781011075,0.970907,2576.6,2576.2,4.51546319]
[1646781011275,4.41742559,2577.1,2576.2,4.51546319]
[1646781011276,2.99895125,2577.1,2576.2,4.51546319]
[1646781011475,0.01475125,2577.1,2576.2,4.51546319]
[1646781011674,0.194,2577.0,2576.2,4.51546319]
[1646781012277,0.9708008,2576.9,2576.2,4.51546319]
[1646781012472,0.194,2576.8,2576.2,4.51546319]
[1646781012676,0.194,2576.8,2576.7,0.95508936]
[1646781014113,0.194,2576.8,2576.2,3.56467621]
[1646781014515,0.9707029,2577.2,2576.3,1.58767577]
[1646781014715,0.6,2577.2,2576.4,3.5]
[1646781014919,2.9121681,2577.3,2576.5,1.58767577]
[1646781015119,2.9121681,2577.3,2576.6,3.5]
[1646781015315,0.194,2577.2,2576.6,3.5]
[1646781015515,0.194,2577.2,2576.8,0.98843433]
[1646781016220,1.4647135,2577.2,2576.8,0.98843433]
[1646781016620,1.7647135,2577.2,2576.8,0.98843433]
[1646781017075,1.4647135,2577.2,2576.8,0.98843433]
[1646781017273,1.7647135,2577.2,2576.8,0.98843433]
[1646781017478,1.7647135,2577.2,2576.5,1.3131]
[1646781017674,1.4647135,2577.2,2576.5,1.3131]
[1646781017874,1.5707135,2577.2,2576.5,0.3131]
[1646781018273,1.2707135,2577.2,2576.5,0.3131]
[1646781018474,1.5707135,2577.2,2576.5,0.3131]
[1646781019275,1.5707135,2577.2,2577.0,0.03021009]
[1646781019676,1.2707135,2577.2,2577.0,0.03021009]
[1646781019978,1.5707135,2577.2,2577.0,0.03021009]
[1646781021219,1.2707135,2577.2,2577.0,0.03021009]
[1646781021416,1.5707135,2577.2,2577.0,0.03021009]
[1646781021818,1.2707135,2577.2,2577.0,0.03021009]
[1646781022022,1.5707135,2577.2,2577.0,0.03021009]
[1646781022423,2.16566234,2577.2,2577.0,0.03021009]
[1646781022626,0.9707135,2577.2,2577.0,0.03021009]
[1646781023724,1.5707135,2577.2,2577.0,0.03021009]
[1646781023925,1.2707135,2577.2,2577.0,0.03021009]
[1646781024123,1.5707135,2577.2,2576.9,0.09066948]
[1646781025581,16.9707135,2577.2,2576.9,0.09066948]
[1646781025775,16.9707135,2577.2,2576.9,0.06017795]
[1646781025776,0.37470979,2577.1,2576.9,0.06017795]
[1646781025975,3.5,2577.0,2576.9,0.06017795]
[1646781026175,3.98070979,2577.0,2575.5,4.5433]
[1646781026375,0.97111,2576.7,2576.0,1.58793451]
[1646781026577,1.21090288,2576.6,2575.8,2.2107774]
[1646781026774,1.21090288,2576.6,2575.9,1.58798156]
[1646781027975,1.94214,2576.5,2575.9,1.58798156]
[1646781028219,2.54214,2576.5,2575.9,1.58798156]
[1646781029625,3.54214,2576.5,2575.9,1.58798156]
[1646781029823,0.97106,2576.3,2575.9,1.58798156]
[1646781030024,1.27106,2576.3,2575.9,1.58798156]
[1646781031423,3.8847328,2576.2,2575.7,0.00325005]
[1646781031867,0.3,2576.1,2575.7,0.00325005]
[1646781032069,0.3,2576.1,2575.6,1.58796382]
[1646781032471,0.3,2576.1,2575.7,0.0032584]
[1646781033270,0.3,2576.1,2575.5,1.58801488]
[1646781033271,12.2,2576.1,2575.5,1.58801488]
[1646781033673,13.2,2576.1,2575.7,0.00325837]
[1646781033873,1.3,2576.1,2575.7,0.00325837]
[1646781034077,1.3,2576.1,2576.0,0.05371202]
[1646781034271,12.2,2576.1,2576.0,0.05371202]
[1646781034675,13.2,2576.1,2576.0,0.05371202]
[1646781036317,13.2,2576.1,2575.7,0.00326778]